[Event "FIDE Womens Grand Prix 2019-20"]
[Site "Skolkovo"]
[Date "2019.09.13"]
[Round "3.6"]
[White "Harika, Dronavalli"]
[Black "Sebag, Marie"]
[Result "1-0"]
[ECO "A03"]
[WhiteElo "2503"]
[BlackElo "2450"]
[Annotator "ChessBase"]
[PlyCount "105"]
[EventDate "2019.09.11"]
[EventType "tourn"]
[EventCountry "RUS"]
[SourceTitle "playchess.com"]
[Source "ChessBase"]
[SourceQuality "1"]
[TimeControl "40/5400+30:1800+30"]

1. f4 {[%emt 0:00:00]} d5 {[%emt 0:01:31]} 2. Nf3 {[%emt 0:00:00]} g6 {[%emt 0:01:04]} 3. g3 {[%emt 0:00:33]} Bg7 {[%emt 0:00:35]} 4. Bg2 {[%emt 0:00:13]} Nf6 {[%emt 0:01:31]} 5. O-O {[%emt 0:00:31]} O-O {[%emt 0:00:16]} 6. d3 {[%emt 0:00:10]} c5 {[%emt 0:02:44]} 7. Qe1 {[%emt 0:00:09]} d4 {[%emt 0:01:58]} 8. Na3 {[%emt 0:00:14]} Nc6 {[%emt 0:22:31]} 9. c4 {[%emt 0:00:42]} Re8 {[%emt 0:19:41]} 10. Rb1 {[%emt 0:01:08]} Nd7 {[%emt 0:03:22]} 11. Qf2 {[%emt 0:12:16]} Nf6 {[%emt 0:04:29]} 12. h3 {[%emt 0:03:50]} e6 {[%emt 0:03:55]} 13. Bd2 {[%emt 0:06:08]} Rb8 {[%emt 0:01:44]} 14. Ne5 {[%emt 0:03:14]} Ne7 {[%emt 0:02:20]} 15. b4 {[%emt 0:05:16]} cxb4 {[%emt 0:00:39]} 16. Bxb4 {[%emt 0:01:53]} Nf5 {[%emt 0:02:53]} 17. Nc2 {[%emt 0:01:50]} Nd7 18. g4 {[%emt 0:06:00]} Ne3 {[%emt 0:03:34]} 19. Nxe3 {[%emt 0:06:21]} dxe3 {[%emt 0:00:15]} 20. Qxe3 {[%emt 0:01:16]} Qc7 {[%emt 0:00:07]} 21. Bc3 {[%emt 0:06:12]} b6 {[%emt 0:01:59]} 22. Nxd7 {[%emt 0:01:21]} Bxd7 {[%emt 0:00:29]} 23. Be5 {[%emt 0:03:28]} Bxe5 {[%emt 0:00:23]} 24. fxe5 {[%emt 0:00:09]} Bc6 {[%emt 0:01:08]} 25. Rf4 {[%emt 0:01:44]} Bxg2 {[%emt 0:02:43]} 26. Kxg2 {[%emt 0:00:06]} Qc6+ {[%emt 0:00:25]} 27. Qf3 {[%emt 0:00:30]} Qxf3+ {[%emt 0:01:29]} 28. Kxf3 {[%emt 0:06:42]} Rec8 {[%emt 0:03:02]} 29. Rd4 {[%emt 0:00:38]} Rb7 {[%emt 0:09:04]} 30. a4 {[%emt 0:00:54]} Rc5 {[%emt 0:01:33]} 31. Rb5 {[%emt 0:00:05]} Rbc7 {[%emt 0:01:02]} 32. Rd8+ {[%emt 0:00:17]} Kg7 {[%emt 0:00:04]} 33. Ra8 {[%emt 0:00:06]} f6 {[%emt 0:04:33]} 34. Rxc5 {[%emt 0:00:58]} bxc5 {[%emt 0:00:03]} 35. h4 {[%emt 0:01:33]} g5 {[%emt 0:00:59]} 36. exf6+ {[%emt 0:02:55]} Kxf6 {[%emt 0:00:04]} 37. h5 {[%emt 0:00:02]} Ke5 {[%emt 0:01:23]} 38. Ke3 {[%emt 0:00:04]} Rf7 {[%emt 0:01:28]} 39. a5 {[%emt 0:02:41]} Kd6 {[%emt 0:00:34]} 40. Rd8+ {[%emt 0:00:00]} Ke5 {[%emt 0:00:00]} 41. Rc8 {[%emt 0:11:50]} Kd6 {[%emt 0:02:28]} 42. Rg8 {[%emt 0:01:30]} h6 {[%emt 0:00:52]} 43. Rg6 {[%emt 0:00:26]} Rf4 {[%emt 0:04:11]} 44. Rxh6 {[%emt 0:00:18]} Rxg4 {[%emt 0:00:04]} 45. Rg6 {[%emt 0:00:29]} Ke5 {[%emt 0:07:49]} 46. a6 {[%emt 0:05:19]} Kf5 {[%emt 0:04:54]} 47. Rg7 {[%emt 0:00:10]} Rh4 {[%emt 0:01:44]} 48. Rxa7 {[%emt 0:01:13]} Rxh5 {[%emt 0:02:33]} 49. Rc7 {[%emt 0:00:58]} Rh3+ {[%emt 0:00:34]} 50. Kf2 {[%emt 0:01:51]} Rh2+ {[%emt 0:00:10]} 51. Kg3 {[%emt 0:00:58]} Rxe2 {[%emt 0:00:30]} 52. Rxc5+ {[%emt 0:00:05]} e5 {[%emt 0:01:47]} 53. Ra5 {[%emt 0:01:15]} 1-0

[Event "FIDE Womens Grand Prix 2019-20"]
[Site "Skolkovo"]
[Date "2019.09.14"]
[Round "4.1"]
[White "Ju, Wenjun"]
[Black "Sebag, Marie"]
[Result "1-0"]
[ECO "D11"]
[WhiteElo "2576"]
[BlackElo "2450"]
[Annotator "ChessBase"]
[PlyCount "67"]
[EventDate "2019.09.11"]
[EventType "tourn"]
[EventCountry "RUS"]
[SourceTitle "playchess.com"]
[Source "ChessBase"]
[SourceQuality "1"]
[TimeControl "40/5400+30:1800+30"]

1. d4 {[%emt 0:00:00]} d5 {[%emt 0:00:00]} 2. c4 {[%emt 0:00:00]} c6 {[%emt 0:00:00]} 3. Nf3 {[%emt 0:00:00]} Nf6 {[%emt 0:00:00]} 4. Qc2 {[%emt 0:00:00]} dxc4 {[%emt 0:00:15]} 5. Qxc4 {[%emt 0:00:00]} Bf5 {[%emt 0:00:32]} 6. g3 {[%emt 0:00:25]} e6 {[%emt 0:00:58]} 7. Bg2 {[%emt 0:00:19]} Be7 {[%emt 0:00:31]} 8. O-O {[%emt 0:01:43]} Nbd7 {[%emt 0:00:49]} 9. Qb3 {[%emt 0:00:24]} Qb6 {[%emt 0:01:44]} 10. Nbd2 {[%emt 0:00:06]} O-O {[%emt 0:02:53]} 11. Nc4 {[%emt 0:00:04]} Qa6 {[%emt 0:09:47]} 12. Bf4 {[%emt 0:00:15]} Nb6 {[%emt 0:09:58]} 13. Bd6 {[%emt 0:02:11]} Bxd6 {[%emt 0:09:43]} 14. Nxd6 {[%emt 0:00:05]} Bg6 {[%emt 0:01:56]} 15. Ne5 {[%emt 0:11:19]} Rad8 {[%emt 0:03:12]} 16. Qb4 {[%emt 0:01:36]} Nfd5 {[%emt 0:07:37]} 17. Bxd5 {[%emt 0:05:57]} exd5 {[%emt 0:07:58]} 18. a4 {[%emt 0:10:09]} Qxe2 {[%emt 0:03:26]} 19. Rfe1 {[%emt 0:08:12]} Qh5 {[%emt 0:13:32]} 20. Nxb7 {[%emt 0:01:52]} Rb8 {[%emt 0:06:48]} 21. a5 {[%emt 0:00:41]} Nc4 {[%emt 0:01:04]} 22. Nd7 {[%emt 0:02:08]} Qf3 {[%emt 0:06:49]} 23. Nxb8 {[%emt 0:03:04]} Rxb8 {[%emt 0:00:37]} 24. Nd6 {[%emt 0:06:23]} Rf8 {[%emt 0:00:33]} 25. Nxc4 {[%emt 0:08:21]} dxc4 {[%emt 0:00:03]} 26. Re3 {[%emt 0:00:06]} Qd5 {[%emt 0:00:37]} 27. Qc5 {[%emt 0:00:25]} Qxc5 {[%emt 0:03:30]} 28. dxc5 {[%emt 0:02:29]} Rb8 {[%emt 0:01:02]} 29. Re7 {[%emt 0:01:19]} h5 {[%emt 0:05:30]} 30. Rxa7 {[%emt 0:01:26]} Rxb2 {[%emt 0:00:11]} 31. a6 {[%emt 0:00:13]} c3 {[%emt 0:00:20]} 32. Rb7 {[%emt 0:00:13]} Kh7 {[%emt 0:01:40]} 33. Rxb2 {[%emt 0:01:06]} cxb2 {[%emt 0:00:04]} 34. Re1 {[%emt 0:00:03]} 1-0

[Event "FIDE Womens Grand Prix 2019-20"]
[Site "Skolkovo"]
[Date "2019.09.14"]
[Round "4.2"]
[White "Kashlinskaya, Alina"]
[Black "Harika, Dronavalli"]
[Result "1-0"]
[ECO "B07"]
[WhiteElo "2487"]
[BlackElo "2503"]
[Annotator "ChessBase"]
[PlyCount "105"]
[EventDate "2019.09.11"]
[EventType "tourn"]
[EventCountry "RUS"]
[SourceTitle "playchess.com"]
[Source "ChessBase"]
[SourceQuality "1"]
[TimeControl "40/5400+30:1800+30"]

1. d4 {[%emt 0:00:00]} d6 {[%emt 0:00:00]} 2. e4 {[%emt 0:00:00]} Nf6 {[%emt 0:00:00]} 3. Nc3 {[%emt 0:00:03]} g6 {[%emt 0:00:00]} 4. Be3 {[%emt 0:00:23]} c6 {[%emt 0:01:17]} 5. Qd2 {[%emt 0:00:22]} Nbd7 {[%emt 0:00:14]} 6. Nf3 {[%emt 0:01:02]} Qa5 {[%emt 0:00:50]} 7. Bd3 {[%emt 0:07:37]} Bg7 {[%emt 0:00:37]} 8. Bh6 {[%emt 0:03:29]} O-O {[%emt 0:02:41]} 9. h4 {[%emt 0:03:23]} Bxh6 {[%emt 0:00:53]} 10. Qxh6 {[%emt 0:00:08]} Ng4 {[%emt 0:00:06]} 11. Qg5 {[%emt 0:03:26]} Qxg5 {[%emt 0:01:20]} 12. hxg5 {[%emt 0:01:07]} e5 {[%emt 0:01:21]} 13. Rh4 {[%emt 0:03:44]} exd4 {[%emt 0:01:56]} 14. Nxd4 {[%emt 0:00:22]} Nge5 {[%emt 0:00:11]} 15. f4 {[%emt 0:19:30]} Nxd3+ {[%emt 0:00:36]} 16. cxd3 {[%emt 0:00:02]} Re8 {[%emt 0:06:37]} 17. g4 {[%emt 0:06:52]} a5 {[%emt 0:03:38]} 18. Kd2 {[%emt 0:01:00]} a4 {[%emt 0:00:52]} 19. Rah1 {[%emt 0:02:49]} Nf8 {[%emt 0:00:06]} 20. a3 {[%emt 0:05:07]} Bd7 {[%emt 0:03:38]} 21. Nc2 {[%emt 0:01:02]} Kg7 {[%emt 0:02:33]} 22. d4 {[%emt 0:08:00]} Red8 {[%emt 0:00:24]} 23. Kc1 {[%emt 0:01:44]} Be8 {[%emt 0:02:43]} 24. Kd2 {[%emt 0:03:42]} Ra7 {[%emt 0:03:08]} 25. Ke3 {[%emt 0:00:16]} b6 {[%emt 0:04:15]} 26. f5 {[%emt 0:02:53]} d5 {[%emt 0:04:50]} 27. exd5 {[%emt 0:04:07]} cxd5 {[%emt 0:00:13]} 28. Nb4 {[%emt 0:00:22]} Ra5 {[%emt 0:03:01]} 29. Kf4 {[%emt 0:00:57]} f6 {[%emt 0:04:14]} 30. gxf6+ {[%emt 0:01:05]} Kxf6 {[%emt 0:00:05]} 31. Rxh7 {[%emt 0:02:45]} g5+ {[%emt 0:01:19]} 32. Kg3 {[%emt 0:00:47]} Nxh7 {[%emt 0:00:07]} 33. Rxh7 {[%emt 0:00:02]} Bf7 {[%emt 0:01:42]} 34. Nc6 {[%emt 0:00:22]} Re8 {[%emt 0:03:34]} 35. Nxa5 {[%emt 0:00:06]} bxa5 {[%emt 0:00:05]} 36. Nxa4 {[%emt 0:06:11]} Re1 {[%emt 0:07:02]} 37. Nb6 {[%emt 0:01:33]} Rg1+ {[%emt 0:03:13]} 38. Kf3 {[%emt 0:04:56]} Ke7 {[%emt 0:00:45]} 39. Nxd5+ {[%emt 0:00:11]} Kf8 {[%emt 0:00:27]} 40. Nc7 {[%emt 0:00:00]} Rf1+ {[%emt 0:00:00]} 41. Ke3 {[%emt 0:06:51]} Re1+ {[%emt 0:01:03]} 42. Kf2 {[%emt 0:01:09]} Re4 {[%emt 0:01:09]} 43. d5 {[%emt 0:00:23]} Rxg4 {[%emt 0:00:17]} 44. Ne6+ {[%emt 0:02:32]} Bxe6 {[%emt 0:01:07]} 45. fxe6 {[%emt 0:01:04]} Rd4 {[%emt 0:00:12]} 46. Rf7+ {[%emt 0:03:52]} Ke8 {[%emt 0:00:07]} 47. Rf5 {[%emt 0:00:03]} g4 {[%emt 0:01:38]} 48. Ke3 {[%emt 0:03:32]} Rd1 {[%emt 0:00:13]} 49. Kf4 {[%emt 0:00:21]} Rg1 {[%emt 0:01:41]} 50. d6 {[%emt 0:02:23]} Rd1 {[%emt 0:00:42]} 51. Ke5 {[%emt 0:00:59]} g3 {[%emt 0:00:15]} 52. d7+ {[%emt 0:00:21]} Kd8 {[%emt 0:00:07]} 53. Rf8+ {[%emt 0:00:06]} 1-0

[Event "FIDE Womens Grand Prix 2019-20"]
[Site "Skolkovo"]
[Date "2019.09.14"]
[Round "4.3"]
[White "Kosteniuk, Alexandra"]
[Black "Koneru, Humpy"]
[Result "1/2-1/2"]
[ECO "C42"]
[WhiteElo "2495"]
[BlackElo "2560"]
[Annotator "ChessBase"]
[PlyCount "113"]
[EventDate "2019.09.11"]
[EventType "tourn"]
[EventCountry "RUS"]
[SourceTitle "playchess.com"]
[Source "ChessBase"]
[SourceQuality "1"]
[TimeControl "40/5400+30:1800+30"]

1. e4 {[%emt 0:00:00]} e5 {[%emt 0:00:00]} 2. Nf3 {[%emt 0:00:00]} Nf6 {[%emt 0:00:00]} 3. Nxe5 {[%emt 0:00:00]} d6 {[%emt 0:00:00]} 4. Nf3 {[%emt 0:00:00]} Nxe4 {[%emt 0:00:00]} 5. d4 {[%emt 0:00:00]} d5 {[%emt 0:00:04]} 6. Bd3 {[%emt 0:00:05]} Bf5 {[%emt 0:00:22]} 7. O-O {[%emt 0:00:07]} Be7 {[%emt 0:00:16]} 8. c4 {[%emt 0:00:33]} dxc4 {[%emt 0:03:07]} 9. Bxc4 {[%emt 0:00:08]} O-O {[%emt 0:00:22]} 10. Re1 {[%emt 0:00:18]} Nd6 {[%emt 0:06:08]} 11. Bd5 {[%emt 0:00:44]} Na6 {[%emt 0:14:53]} 12. Ne5 {[%emt 0:04:50]} Nb4 {[%emt 0:04:49]} 13. Bb3 {[%emt 0:01:23]} Nc6 {[%emt 0:03:22]} 14. Nxc6 {[%emt 0:07:51]} bxc6 {[%emt 0:00:11]} 15. Qf3 {[%emt 0:11:48]} Bf6 {[%emt 0:11:54]} 16. Qxc6 {[%emt 0:07:09]} Re8 {[%emt 0:03:00]} 17. Be3 {[%emt 0:05:30]} Bxd4 {[%emt 0:04:38]} 18. Nc3 {[%emt 0:00:07]} Bxe3 {[%emt 0:02:24]} 19. fxe3 {[%emt 0:00:58]} Re5 {[%emt 0:07:39]} 20. Rf1 {[%emt 0:10:20]} Rb8 {[%emt 0:12:23]} 21. Rad1 {[%emt 0:01:46]} Be6 {[%emt 0:01:15]} 22. Nd5 {[%emt 0:03:59]} Bxd5 {[%emt 0:04:23]} 23. Bxd5 {[%emt 0:03:13]} Re7 {[%emt 0:01:18]} 24. Rd2 {[%emt 0:11:55]} Rb6 {[%emt 0:01:11]} 25. Qa4 {[%emt 0:08:03]} Qb8 {[%emt 0:00:25]} 26. Qh4 {[%emt 0:05:42]} Qe8 {[%emt 0:00:12]} 27. Bb3 {[%emt 0:02:34]} h6 {[%emt 0:01:03]} 28. Rdf2 {[%emt 0:03:35]} a5 {[%emt 0:04:21]} 29. Rf4 {[%emt 0:04:05]} c5 {[%emt 0:07:30]} 30. Rg4 {[%emt 0:00:53]} Rb4 {[%emt 0:05:30]} 31. Rxg7+ {[%emt 0:01:37]} Kxg7 {[%emt 0:00:05]} 32. Qf6+ {[%emt 0:00:04]} Kh7 {[%emt 0:00:16]} 33. Qxd6 {[%emt 0:00:14]} Rxb3 {[%emt 0:00:50]} 34. axb3 {[%emt 0:00:05]} Rxe3 {[%emt 0:00:32]} 35. Qxc5 {[%emt 0:00:37]} Re1 {[%emt 0:00:27]} 36. h3 {[%emt 0:03:24]} Qe3+ {[%emt 0:00:29]} 37. Qxe3 {[%emt 0:00:15]} Rxe3 {[%emt 0:00:05]} 38. Rxf7+ {[%emt 0:00:33]} Kg6 {[%emt 0:00:05]} 39. Rb7 {[%emt 0:01:12]} Re2 {[%emt 0:00:37]} 40. b4 {[%emt 0:00:00]} a4 {[%emt 0:00:00]} 41. Ra7 {[%emt 0:01:13]} Rxb2 {[%emt 0:01:02]} 42. Rxa4 {[%emt 0:00:05]} Kg5 {[%emt 0:06:04]} 43. Kh2 {[%emt 0:06:47]} h5 {[%emt 0:05:34]} 44. Ra5+ {[%emt 0:12:11]} Kh4 {[%emt 0:01:15]} 45. b5 {[%emt 0:00:04]} Kg5 {[%emt 0:01:44]} 46. Kg3 {[%emt 0:02:48]} Rb3+ {[%emt 0:01:58]} 47. Kh2 {[%emt 0:02:45]} h4 {[%emt 0:06:56]} 48. Kg1 {[%emt 0:01:04]} Kf4 {[%emt 0:00:47]} 49. b6 {[%emt 0:01:20]} Rxb6 {[%emt 0:02:52]} 50. Rh5 {[%emt 0:00:04]} Rb4 {[%emt 0:00:16]} 51. Kh2 {[%emt 0:02:47]} Ke3 {[%emt 0:00:56]} 52. Rg5 {[%emt 0:00:32]} Rc4 {[%emt 0:01:54]} 53. Rf5 {[%emt 0:03:42]} Rf4 {[%emt 0:01:53]} 54. Rxf4 {[%emt 0:02:18]} Kxf4 {[%emt 0:00:06]} 55. Kg1 {[%emt 0:00:02]} Kg3 {[%emt 0:00:23]} 56. Kf1 {[%emt 0:00:05]} Kf4 {[%emt 0:00:14]} 57. Kf2 {[%emt 0:00:14]} 1/2-1/2

[Event "FIDE Womens Grand Prix 2019-20"]
[Site "Skolkovo"]
[Date "2019.09.14"]
[Round "4.4"]
[White "Goryachkina, Aleksandra"]
[Black "Lagno, Kateryna"]
[Result "1/2-1/2"]
[ECO "B51"]
[WhiteElo "2564"]
[BlackElo "2545"]
[Annotator "ChessBase"]
[PlyCount "65"]
[EventDate "2019.09.11"]
[EventType "tourn"]
[EventCountry "RUS"]
[SourceTitle "playchess.com"]
[Source "ChessBase"]
[SourceQuality "1"]
[TimeControl "40/5400+30:1800+30"]

1. e4 {[%emt 0:00:00]} c5 {[%emt 0:00:00]} 2. Nf3 {[%emt 0:00:00]} d6 {[%emt 0:00:00]} 3. Bb5+ {[%emt 0:00:10]} Nd7 {[%emt 0:00:28]} 4. Ba4 {[%emt 0:03:18]} Ngf6 {[%emt 0:03:35]} 5. O-O {[%emt 0:01:17]} g6 {[%emt 0:09:45]} 6. Re1 {[%emt 0:09:56]} Bg7 {[%emt 0:00:30]} 7. c3 {[%emt 0:01:13]} O-O {[%emt 0:00:49]} 8. d4 {[%emt 0:00:53]} e5 {[%emt 0:00:47]} 9. dxe5 {[%emt 0:06:27]} dxe5 {[%emt 0:13:39]} 10. Bg5 {[%emt 0:08:52]} Nb6 {[%emt 0:18:02]} 11. Qxd8 {[%emt 0:08:26]} Rxd8 {[%emt 0:00:04]} 12. Bc2 {[%emt 0:00:36]} h6 {[%emt 0:05:00]} 13. Bh4 {[%emt 0:03:24]} Re8 {[%emt 0:04:40]} 14. Na3 {[%emt 0:00:59]} Bd7 {[%emt 0:01:38]} 15. Nd2 {[%emt 0:01:34]} g5 {[%emt 0:02:02]} 16. Bg3 {[%emt 0:00:20]} Rad8 {[%emt 0:02:11]} 17. f3 {[%emt 0:06:18]} Nh5 {[%emt 0:07:06]} 18. Rad1 {[%emt 0:08:39]} Nf4 {[%emt 0:08:09]} 19. Ndc4 {[%emt 0:05:14]} Nxc4 {[%emt 0:01:16]} 20. Nxc4 {[%emt 0:00:02]} Be6 21. Ne3 {[%emt 0:11:57]} b5 {[%emt 0:04:35]} 22. a4 {[%emt 0:03:18]} a6 {[%emt 0:00:23]} 23. Kf1 {[%emt 0:03:53]} c4 {[%emt 0:01:42]} 24. Bxf4 {[%emt 0:01:45]} exf4 {[%emt 0:00:05]} 25. Nd5 {[%emt 0:01:05]} Bxd5 {[%emt 0:02:53]} 26. exd5 {[%emt 0:00:45]} Rxe1+ {[%emt 0:00:21]} 27. Kxe1 {[%emt 0:00:05]} Bf8 {[%emt 0:02:02]} 28. axb5 {[%emt 0:03:35]} axb5 {[%emt 0:00:04]} 29. Be4 {[%emt 0:00:45]} Kg7 {[%emt 0:01:59]} 30. d6 {[%emt 0:03:16]} Rxd6 {[%emt 0:00:47]} 31. Rxd6 {[%emt 0:00:09]} Bxd6 {[%emt 0:00:03]} 32. Bc6 {[%emt 0:00:09]} b4 {[%emt 0:00:09]} 33. Bd5 {[%emt 0:00:35]} 1/2-1/2

[Event "FIDE Womens Grand Prix 2019-20"]
[Site "Skolkovo"]
[Date "2019.09.14"]
[Round "4.5"]
[White "Cramling, Pia"]
[Black "Gunina, Valentina"]
[Result "1/2-1/2"]
[ECO "A28"]
[WhiteElo "2487"]
[BlackElo "2502"]
[Annotator "ChessBase"]
[PlyCount "113"]
[EventDate "2019.09.11"]
[EventType "tourn"]
[EventCountry "RUS"]
[SourceTitle "playchess.com"]
[Source "ChessBase"]
[SourceQuality "1"]
[TimeControl "40/5400+30:1800+30"]

1. c4 {[%emt 0:00:00]} e5 {[%emt 0:00:23]} 2. Nc3 {[%emt 0:00:11]} Nf6 {[%emt 0:00:06]} 3. e3 {[%emt 0:00:22]} Nc6 {[%emt 0:01:52]} 4. Nf3 {[%emt 0:07:06]} Bb4 {[%emt 0:04:12]} 5. Qc2 {[%emt 0:08:08]} Bxc3 {[%emt 0:01:58]} 6. Qxc3 {[%emt 0:00:14]} d6 {[%emt 0:00:31]} 7. d3 {[%emt 0:05:18]} O-O {[%emt 0:02:06]} 8. Be2 {[%emt 0:01:25]} e4 {[%emt 0:02:44]} 9. Nd4 {[%emt 0:00:42]} Ne5 {[%emt 0:08:35]} 10. dxe4 {[%emt 0:10:23]} c5 {[%emt 0:04:52]} 11. Nf3 {[%emt 0:06:45]} Nxe4 {[%emt 0:03:28]} 12. Qc2 {[%emt 0:05:25]} Bf5 {[%emt 0:07:52]} 13. Nxe5 {[%emt 0:00:52]} Ng3 {[%emt 0:10:49]} 14. Bd3 {[%emt 0:02:21]} Bxd3 {[%emt 0:08:59]} 15. Qxd3 {[%emt 0:06:13]} Nxh1 {[%emt 0:04:11]} 16. Nf3 {[%emt 0:00:07]} Qf6 {[%emt 0:12:50]} 17. Bd2 {[%emt 0:19:01]} b5 {[%emt 0:02:52]} 18. Bc3 {[%emt 0:04:07]} bxc4 {[%emt 0:00:23]} 19. Qxc4 {[%emt 0:02:12]} Qh6 {[%emt 0:02:21]} 20. Kf1 {[%emt 0:04:45]} Rae8 {[%emt 0:00:24]} 21. Re1 {[%emt 0:01:00]} Kh8 {[%emt 0:02:35]} 22. Kg1 {[%emt 0:00:31]} Nxf2 {[%emt 0:00:04]} 23. Kxf2 {[%emt 0:00:05]} f5 {[%emt 0:00:03]} 24. Qf4 {[%emt 0:02:20]} Qe6 {[%emt 0:03:47]} 25. Ng5 {[%emt 0:05:41]} Qg6 {[%emt 0:01:59]} 26. Rd1 {[%emt 0:00:41]} Rd8 {[%emt 0:00:11]} 27. Rd5 {[%emt 0:00:32]} h6 {[%emt 0:00:40]} 28. Nf3 {[%emt 0:00:21]} Qe6 {[%emt 0:00:45]} 29. Qc4 {[%emt 0:01:12]} Qe4 {[%emt 0:07:21]} 30. Nd2 {[%emt 0:01:07]} Qe7 {[%emt 0:00:13]} 31. Nf3 {[%emt 0:00:18]} Qe4 {[%emt 0:00:02]} 32. Nd2 {[%emt 0:00:34]} Qe7 {[%emt 0:00:03]} 33. g3 {[%emt 0:00:28]} Rde8 {[%emt 0:03:00]} 34. Nf1 {[%emt 0:03:38]} Rd8 {[%emt 0:02:26]} 35. Nd2 {[%emt 0:00:05]} Rde8 {[%emt 0:00:05]} 36. Nf1 {[%emt 0:00:34]} Rd8 {[%emt 0:00:01]} 37. Qd3 {[%emt 0:00:22]} Qe6 {[%emt 0:00:37]} 38. Nd2 {[%emt 0:00:23]} Rd7 {[%emt 0:02:20]} 39. Nc4 {[%emt 0:00:53]} Rfd8 {[%emt 0:01:00]} 40. Ba5 {[%emt 0:00:00]} Rb8 {[%emt 0:00:00]} 41. b3 {[%emt 0:03:39]} Re8 {[%emt 0:11:16]} 42. Bc3 {[%emt 0:07:04]} Red8 {[%emt 0:06:59]} 43. Rxf5 {[%emt 0:14:24]} d5 {[%emt 0:02:46]} 44. Ne5 {[%emt 0:00:29]} c4 {[%emt 0:01:59]} 45. bxc4 {[%emt 0:02:28]} dxc4 {[%emt 0:00:06]} 46. Qe4 {[%emt 0:00:57]} Kg8 {[%emt 0:01:15]} 47. Rf4 {[%emt 0:01:42]} Rd5 {[%emt 0:03:06]} 48. Ng6 {[%emt 0:01:47]} Qxe4 {[%emt 0:02:37]} 49. Rxe4 {[%emt 0:00:02]} R5d6 {[%emt 0:01:55]} 50. Nf4 {[%emt 0:01:56]} g5 {[%emt 0:01:39]} 51. Nh5 {[%emt 0:00:58]} Rc6 {[%emt 0:01:27]} 52. Re7 {[%emt 0:01:50]} Rd3 {[%emt 0:00:09]} 53. Bg7 {[%emt 0:00:48]} Rdd6 {[%emt 0:01:13]} 54. Bc3 {[%emt 0:00:14]} Rd3 {[%emt 0:00:06]} 55. Bg7 {[%emt 0:00:47]} Rdd6 {[%emt 0:00:02]} 56. Bc3 {[%emt 0:01:23]} Rd3 {[%emt 0:00:21]} 57. Bg7 {[%emt 0:00:51]} 1/2-1/2

[Event "FIDE Womens Grand Prix 2019-20"]
[Site "Skolkovo"]
[Date "2019.09.14"]
[Round "4.6"]
[White "Stefanova, Antoaneta"]
[Black "Paehtz, Elisabeth"]
[Result "1/2-1/2"]
[ECO "B96"]
[WhiteElo "2491"]
[BlackElo "2479"]
[Annotator "ChessBase"]
[PlyCount "50"]
[EventDate "2019.09.11"]
[EventType "tourn"]
[EventCountry "RUS"]
[SourceTitle "playchess.com"]
[Source "ChessBase"]
[SourceQuality "1"]
[TimeControl "40/5400+30:1800+30"]

1. e4 {[%emt 0:00:00]} c5 {[%emt 0:00:00]} 2. Nf3 {[%emt 0:00:00]} d6 {[%emt 0:00:00]} 3. d4 {[%emt 0:00:05]} cxd4 {[%emt 0:00:00]} 4. Nxd4 {[%emt 0:00:04]} Nf6 {[%emt 0:00:00]} 5. Nc3 {[%emt 0:00:06]} a6 {[%emt 0:00:00]} 6. Bg5 {[%emt 0:01:20]} e6 {[%emt 0:02:13]} 7. f4 {[%emt 0:00:31]} Nbd7 {[%emt 0:01:25]} 8. Qf3 {[%emt 0:01:00]} Qc7 {[%emt 0:00:52]} 9. O-O-O {[%emt 0:01:02]} b5 {[%emt 0:05:19]} 10. e5 {[%emt 0:09:35]} Bb7 {[%emt 0:01:12]} 11. Qh3 {[%emt 0:00:24]} dxe5 {[%emt 0:00:09]} 12. Nxe6 {[%emt 0:00:27]} fxe6 {[%emt 0:00:04]} 13. Qxe6+ {[%emt 0:00:05]} Be7 {[%emt 0:00:05]} 14. Bxb5 {[%emt 0:00:28]} axb5 {[%emt 0:01:26]} 15. Nxb5 {[%emt 0:00:07]} Qc6 {[%emt 0:04:39]} 16. Nd6+ {[%emt 0:00:55]} Kd8 {[%emt 0:00:05]} 17. fxe5 {[%emt 0:02:26]} Kc7 {[%emt 0:06:34]} 18. Bxf6 {[%emt 0:02:36]} gxf6 {[%emt 0:05:01]} 19. Qxe7 {[%emt 0:01:39]} Rxa2 {[%emt 0:02:41]} 20. Nxb7 {[%emt 0:01:28]} Ra1+ {[%emt 0:00:14]} 21. Kd2 {[%emt 0:00:05]} Qxg2+ {[%emt 0:00:11]} 22. Kc3 {[%emt 0:01:05]} Qc6+ {[%emt 0:00:38]} 23. Kd2 {[%emt 0:00:46]} Qg2+ {[%emt 0:00:30]} 24. Kc3 {[%emt 0:00:42]} Qc6+ {[%emt 0:00:17]} 25. Kd2 {[%emt 0:00:06]} Qg2+ {[%emt 0:00:11]} 1/2-1/2

[Event "FIDE Womens Grand Prix 2019-20"]
[Site "Skolkovo"]
[Date "2019.09.15"]
[Round "5.1"]
[White "Paehtz, Elisabeth"]
[Black "Ju, Wenjun"]
[Result "1/2-1/2"]
[ECO "C42"]
[WhiteElo "2479"]
[BlackElo "2576"]
[Annotator "ChessBase"]
[PlyCount "46"]
[EventDate "2019.09.11"]
[EventType "tourn"]
[EventCountry "RUS"]
[SourceTitle "playchess.com"]
[Source "ChessBase"]
[SourceQuality "1"]
[TimeControl "40/5400+30:1800+30"]

1. e4 {[%emt 0:00:00]} e5 {[%emt 0:00:00]} 2. Nf3 {[%emt 0:00:00]} Nf6 {[%emt 0:00:00]} 3. Nxe5 {[%emt 0:00:00]} d6 {[%emt 0:00:00]} 4. Nf3 {[%emt 0:00:00]} Nxe4 {[%emt 0:00:00]} 5. d4 {[%emt 0:00:29]} d5 {[%emt 0:00:21]} 6. Bd3 {[%emt 0:00:05]} Bf5 {[%emt 0:00:10]} 7. O-O {[%emt 0:00:23]} Be7 {[%emt 0:00:08]} 8. Re1 {[%emt 0:00:27]} O-O {[%emt 0:00:30]} 9. c4 {[%emt 0:00:09]} Nc6 {[%emt 0:00:13]} 10. cxd5 {[%emt 0:00:06]} Qxd5 {[%emt 0:00:17]} 11. Nc3 {[%emt 0:00:04]} Nxc3 {[%emt 0:00:04]} 12. bxc3 {[%emt 0:00:03]} Bxd3 {[%emt 0:01:23]} 13. Qxd3 {[%emt 0:00:04]} Rfe8 {[%emt 0:00:21]} 14. Bf4 {[%emt 0:00:18]} Bd6 {[%emt 0:00:08]} 15. c4 {[%emt 0:00:42]} Qh5 {[%emt 0:00:59]} 16. Bg3 {[%emt 0:00:39]} b6 {[%emt 0:01:40]} 17. Re4 {[%emt 0:16:55]} Bxg3 {[%emt 0:06:10]} 18. hxg3 {[%emt 0:00:09]} Rxe4 {[%emt 0:01:23]} 19. Qxe4 {[%emt 0:00:05]} Qg6 {[%emt 0:00:03]} 20. Qf4 {[%emt 0:03:49]} Qd6 {[%emt 0:00:47]} 21. Qe4 {[%emt 0:00:09]} Qg6 {[%emt 0:04:31]} 22. Qf4 {[%emt 0:00:04]} Qd6 {[%emt 0:00:04]} 23. Qe4 {[%emt 0:00:03]} Qg6 {[%emt 0:00:19]} 1/2-1/2